bitfinex/quotes_ETHUSD_20250112
["timestamp","ask_amount","ask_price","bid_price","bid_amount"]
[1736672433975,5.31,3244.1,3243.4,2.15821]
[1736672434209,0.7801,3244.3,3243.6,2.15803]
[1736672435317,0.7801,3244.3,3243.7,2.15801]
[1736672436717,0.7801,3244.3,3243.8,2.15795]
[1736672436917,0.7801,3244.6,3243.9,0.215795]
[1736672437235,0.7801,3244.6,3243.8,2.15795]
[1736672437624,0.7801,3244.6,3243.9,2.15788]
[1736672439245,0.7801,3244.6,3243.6,0.0075]
[1736672439541,0.7801,3244.6,3243.7,2.158]
[1736672439903,5.31,3244.8,3243.8,0.7982]
[1736672440104,0.7801,3244.7,3243.8,0.7982]
[1736672440443,1.60484,3244.7,3243.8,0.7982]
[1736672440621,3.76221,3244.7,3243.7,2.15801]
[1736672444728,8.24747,3244.7,3243.7,2.15801]
[1736672446374,8.2456206,3244.7,3243.7,2.15801]
[1736672446877,8.2456206,3244.7,3243.5,1.42573573]
[1736672446878,6.0882506,3244.7,3243.6,0.0075]
[1736672447028,6.0882506,3244.7,3243.8,2.15794]
[1736672447423,6.0882506,3244.7,3243.5,4.03416241]
[1736672447626,6.0882506,3244.7,3243.7,2.15798]
[1736672448058,6.0882506,3244.7,3243.8,2.15791]
[1736672453344,6.0382506,3244.7,3243.8,2.15791]
[1736672457605,6.0382506,3244.7,3243.8,2.60842668]
[1736672457840,6.0382506,3244.7,3244.0,2.15781]
[1736672458022,6.0382506,3244.7,3244.1,0.297971]
[1736672458805,6.0382506,3244.7,3243.9,0.8219]
[1736672459005,8.1956206,3244.7,3243.8,2.15794]
[1736672460303,0.7504,3244.5,3243.6,2.77731424]
[1736672460743,0.7504,3244.5,3243.6,0.61923424]
[1736672460900,0.7504,3244.0,3243.1,0.26984267]
[1736672461252,0.7504,3244.0,3243.2,0.60975195]
[1736672461416,0.7504,3243.9,3243.1,0.26234267]
[1736672461624,0.7504,3243.9,3243.0,2.15848]
[1736672462652,0.7504,3243.9,3242.7,5.98053]
[1736672462653,0.7504,3243.9,3243.1,2.18922921]
[1736672462952,0.7504,3243.9,3243.3,2.15829]
[1736672463248,0.7504,3243.9,3243.3,0.0075]
[1736672463548,0.7641,3244.1,3243.5,2.15811]
[1736672463699,0.7641,3244.1,3243.6,0.215811]
[1736672463903,0.7641,3244.1,3243.7,0.03082561]
[1736672464134,0.7641,3244.1,3243.6,2.15809]
[1736672464454,0.7641,3244.3,3243.7,2.98488]
[1736672466203,0.7641,3244.3,3243.7,0.8269]
[1736672466404,0.7641,3244.3,3243.5,2.15813]
[1736672466608,0.7641,3244.3,3243.6,0.55934567]
[1736672466825,0.7641,3244.3,3243.2,3.0075]
[1736672467270,0.7641,3244.0,3243.2,2.16584]
[1736672467472,0.7641,3244.0,3243.3,0.03082893]
[1736672468484,0.7641,3244.0,3243.4,2.60842668]
[1736672468631,0.7641,3244.0,3243.2,5.15836]
[1736672468828,0.7641,3244.0,3243.3,3.62935343]
[1736672469175,0.7641,3244.0,3243.3,0.62935343]
[1736672469743,0.7641,3244.0,3243.4,0.0075]
[1736672469957,0.7641,3244.0,3243.7,2.158]
[1736672470162,0.7641,3244.4,3243.8,2.15795]
[1736672470341,0.7641,3244.4,3243.9,0.215795]
[1736672474807,0.7641,3244.4,3243.9,2.373675]
[1736672475493,0.7641,3244.4,3243.9,0.215795]
[1736672483626,0.7641,3244.4,3243.7,2.15799]
[1736672484414,0.7641,3244.4,3243.5,2.76354622]
[1736672484629,2.37518,3245.0,3243.5,2.76354622]
[1736672484630,0.8206,3244.3,3243.5,2.76354622]
[1736672485834,0.8206,3244.3,3243.6,2.18890547]
[1736672488588,0.8206,3244.3,3243.5,0.60542622]
[1736672488936,0.8206,3244.3,3243.7,2.15802]
[1736672492050,0.8206,3244.3,3243.6,0.32138529]
[1736672492250,0.8206,3244.3,3243.8,2.98565]
[1736672493035,0.8206,3244.3,3243.8,2.15795]
[1736672493575,0.8206,3244.3,3243.6,0.32138529]
[1736672493753,0.8206,3244.3,3243.7,0.17545115]
[1736672496452,0.8206,3244.3,3243.7,2.33344115]
[1736672497953,0.8206,3244.3,3243.3,0.598526]
[1736672498138,0.8206,3244.1,3243.2,2.15835]
[1736672498341,2.15777,3244.1,3243.0,3.0]
[1736672498657,0.8206,3244.0,3243.1,2.16589]
[1736672499214,0.8206,3244.0,3243.1,5.16589]
[1736672499470,0.8206,3244.0,3243.1,2.16589]
[1736672499651,0.8206,3244.0,3243.2,0.27797347]
[1736672502955,0.8206,3244.0,3243.2,2.15834]
[1736672503855,0.8206,3244.0,3243.3,0.03082858]
[1736672504174,0.8206,3244.0,3243.3,0.015]
[1736672504341,0.8206,3244.0,3243.6,2.15804]
[1736672504679,0.8172,3244.6,3243.6,2.15804]
[1736672504884,0.8172,3244.6,3243.6,2.71742667]
[1736672505661,0.8172,3244.6,3243.6,3.34244789]
[1736672506387,0.8172,3244.6,3243.7,2.15801]
[1736672509792,0.8172,3244.6,3243.8,2.15795]
[1736672510295,0.8172,3244.6,3243.6,3.34247789]
[1736672510500,0.8172,3244.6,3243.7,0.59509046]
[1736672511267,0.8172,3244.6,3243.7,2.75309046]
[1736672512992,2.97464,3244.6,3243.7,2.75309046]
[1736672513353,0.8198,3244.5,3243.7,2.75309046]
[1736672517393,0.8198,3244.5,3243.9,2.93019]
[1736672517566,0.8198,3244.5,3244.0,0.58851574]
[1736672517995,0.8198,3244.5,3244.0,2.74633574]
[1736672519051,2.15703,3245.2,3244.1,2.60842668]
[1736672519261,0.8251,3245.1,3244.2,2.15767]
[1736672519558,0.8251,3245.1,3244.3,0.47660967]
[1736672520406,0.8251,3245.1,3244.4,0.7873]
[1736672520708,0.8251,3245.1,3244.8,2.60842668]
[1736672520901,0.8251,3245.1,3244.6,0.61743259]
[1736672524003,0.8251,3245.1,3244.6,2.77485259]
[1736672524309,0.8251,3245.1,3244.7,0.53832793]
[1736672524958,0.8251,3245.1,3244.7,2.69566793]
[1736672525154,0.7525,3245.7,3244.8,2.15728]
[1736672525563,0.7525,3245.7,3244.9,0.03081433]
[1736672526406,0.7525,3245.7,3244.8,2.60842668]
[1736672526559,0.7525,3245.7,3244.9,0.31467546]
[1736672527162,0.7525,3245.7,3244.9,0.3454898]
[1736672531302,0.7525,3245.7,3244.6,0.61743259]
[1736672531600,0.7525,3245.3,3244.6,0.61743259]
[1736672532833,0.7525,3245.3,3244.6,2.77480259]
[1736672533021,0.7525,3245.3,3244.8,2.15729]
[1736672533213,0.7525,3245.3,3244.9,0.03081445]
[1736672533526,0.7525,3245.3,3245.0,0.47965311]
[1736672534531,0.7525,3245.3,3244.2,2.15768]
[1736672534532,0.7525,3245.3,3244.2,4.76610668]
[1736672534733,0.7525,3245.3,3244.4,2.15754]
[1736672535518,0.7525,3245.3,3244.5,0.61622038]
[1736672535831,0.7525,3245.3,3244.4,2.15754]
[1736672536034,2.15697,3245.3,3244.4,2.15754]
[1736672536185,0.8143,3245.2,3244.5,0.62657799]
[1736672536728,0.8143,3245.2,3244.3,0.47660967]
[1736672536898,2.15705,3245.2,3244.3,0.47660967]
[1736672537103,0.8143,3245.1,3244.3,2.63422967]
[1736672540127,0.8143,3245.1,3244.4,2.15755]
[1736672541054,0.8143,3245.1,3244.5,2.18829765]
[1736672541223,0.8143,3245.1,3244.6,2.37623977]
[1736672542136,0.8143,3245.1,3244.7,2.15735]
[1736672543758,0.7606,3245.4,3244.7,2.78375635]
[1736672545556,0.7606,3245.4,3244.7,2.15735]
[1736672545855,5.31,3245.5,3244.4,2.15756]
[1736672545856,0.7606,3245.3,3244.4,2.15756]
[1736672546043,0.7606,3245.3,3244.4,2.68181964]
[1736672546390,0.7606,3245.3,3244.5,0.03081758]
[1736672546908,0.7606,3245.2,3244.4,2.68181964]
[1736672547044,0.7606,3245.1,3244.4,0.52425964]
[1736672547388,0.7606,3245.0,3244.1,2.17274]
[1736672547798,0.7606,3245.0,3244.2,2.15769]
[1736672547943,2.15718,3245.0,3244.1,3.0075]
[1736672548290,0.7606,3244.8,3244.2,0.59223]
[1736672552690,0.7606,3244.8,3244.2,2.74991]
[1736672552892,0.7606,3244.8,3244.3,0.03082018]
[1736672553261,0.7606,3244.8,3244.2,2.74991]
[1736672553990,0.7606,3244.8,3244.3,0.03082016]
[1736672554193,0.7606,3244.8,3244.4,0.27807302]
[1736672556717,0.7606,3244.8,3244.5,0.03082013]
[1736672557271,0.7606,3244.8,3244.5,2.18831013]
[1736672558586,0.7794,3245.2,3244.7,2.15733]
[1736672559291,0.7794,3245.2,3244.8,0.216483]
[1736672560019,0.7794,3245.2,3244.5,2.15748]
[1736672560322,0.7794,3245.0,3244.3,0.60413186]
[1736672560993,0.7794,3244.9,3244.3,0.60413186]
[1736672566710,0.7794,3244.9,3244.3,2.76175186]
[1736672567653,0.7794,3244.9,3244.3,0.60413186]
[1736672568440,0.7794,3244.9,3244.3,1.18031405]
[1736672568643,0.7794,3244.9,3244.3,1.21113375]
[1736672568843,0.7794,3244.9,3244.3,3.36869375]
[1736672569076,0.7794,3244.9,3244.4,2.95905]
[1736672569226,0.7794,3244.9,3244.5,0.03081755]
[1736672569427,0.7794,3244.9,3244.6,0.29898676]
[1736672572475,0.7794,3244.9,3244.5,2.15747]
[1736672572677,0.7794,3244.9,3244.3,3.33791405]
[1736672573779,0.7794,3244.9,3244.4,2.18835755]
[1736672574191,0.8036,3245.1,3244.5,2.15744]
[1736672574370,0.8036,3245.1,3244.6,2.16486]
[1736672574569,0.8036,3245.1,3244.7,0.216486]
[1736672575759,0.8036,3245.1,3244.7,2.373826]
[1736672576876,0.8036,3245.5,3244.7,3.175326]
[1736672580007,0.8036,3245.5,3244.8,0.60911542]
[1736672583034,0.8036,3245.5,3244.9,0.03081444]
[1736672583536,0.7914,3245.6,3244.8,0.60911542]
[1736672583684,0.7914,3245.2,3244.4,3.0]
[1736672584359,0.7914,3245.1,3244.4,3.0]
[1736672584564,0.7914,3245.1,3244.3,0.57618219]
[1736672584760,0.7914,3245.1,3244.0,2.60842668]
[1736672584761,0.7914,3244.7,3244.4,0.61473221]
[1736672590284,0.7914,3244.7,3244.4,0.64555115]
[1736672592321,0.7914,3244.7,3244.4,0.61473221]
[1736672593054,0.7914,3244.7,3244.4,0.64555108]
[1736672593239,0.7914,3244.7,3244.5,0.28031611]
[1736672595973,0.7914,3244.9,3244.5,0.28031611]
[1736672598664,5.31,3245.0,3244.5,0.28031611]
[1736672598838,0.7914,3245.2,3244.6,0.03081851]
[1736672599038,0.7914,3245.2,3244.6,2.18823579]
[1736672599253,0.7914,3245.2,3244.7,1.04945519]
[1736672600175,0.7914,3245.2,3244.8,0.03081541]
[1736672600460,5.31,3245.4,3244.8,0.03081541]
[1736672603470,0.7914,3245.5,3244.8,0.03081541]
[1736672604025,0.7914,3245.5,3244.9,2.15723]
[1736672604322,0.7959,3245.8,3245.1,0.8191]
[1736672605625,0.7959,3245.8,3245.1,2.97617]
[1736672608770,0.7959,3245.8,3245.2,2.15702]
[1736672608954,0.7959,3246.0,3245.3,0.61402398]
[1736672609162,0.7959,3246.0,3245.4,0.2771044]
[1736672609533,0.7959,3246.0,3245.5,0.8191]
[1736672611351,5.31,3246.1,3245.5,0.8191]
[1736672613092,5.31,3246.1,3245.6,0.03080896]
[1736672615102,5.31,3246.1,3245.5,0.8191]
[1736672615253,0.7712,3246.0,3245.3,1.38412398]
[1736672617587,0.7712,3246.0,3245.4,0.3541124]
[1736672618997,0.7712,3246.0,3245.3,1.38412398]
[1736672624883,0.7712,3246.0,3245.3,3.54108398]
[1736672625308,5.31,3246.1,3245.4,0.0308089]
[1736672625485,5.31,3246.1,3245.3,3.54108398]
[1736672626788,5.31,3246.1,3245.4,0.79740891]
[1736672626987,5.31,3246.1,3245.5,0.35683929]
[1736672627324,2.93167,3246.2,3245.5,0.35683929]
[1736672627491,8.24155,3246.4,3245.6,0.7666]
[1736672628135,2.1563,3246.3,3245.6,0.7666]
[1736672630613,0.7753,3246.3,3245.4,0.7666]
[1736672630807,1.64467267,3246.3,3245.4,0.7666]
[1736672631337,1.23237539,3246.1,3245.4,0.7666]
[1736672631733,3.38881539,3246.1,3245.4,0.7666]
[1736672632174,1.23237539,3245.7,3245.4,0.7666]
[1736672632307,1.23237539,3245.7,3245.1,0.7666]
[1736672633251,1.23237539,3245.7,3245.1,0.92731792]
[1736672633453,0.7753,3245.8,3245.1,0.92731792]
[1736672633607,2.15677,3245.6,3245.1,0.7666]
[1736672634629,5.53574396,3245.8,3244.9,0.7635]
[1736672635332,2.15684,3245.5,3244.9,0.7635]
[1736672637167,5.53574396,3245.8,3244.9,0.7635]
[1736672637321,2.15693,3245.4,3244.9,0.7635]
[1736672638644,7.46669,3245.7,3244.9,0.7635]
[1736672638812,7.46669,3245.7,3244.6,0.7635]
[1736672638813,3.9441384,3245.6,3244.6,0.7635]
[1736672639015,2.15715,3245.1,3244.6,0.7635]
[1736672640671,2.15702,3245.3,3244.6,0.7635]
[1736672642470,7.46702,3245.3,3244.6,0.7635]
[1736672644681,5.31,3245.3,3244.7,0.03081824]
[1736672644975,7.46645,3246.1,3245.1,0.8178]
[1736672645128,7.46645,3246.1,3245.2,0.62830565]
[1736672645330,7.46645,3246.1,3245.3,0.8178]
[1736672646079,5.31,3246.1,3245.3,0.8178]
[1736672646374,2.15664,3245.8,3245.3,0.8178]
[1736672646730,2.15664,3245.8,3244.9,0.8178]
[1736672647070,2.15664,3245.8,3245.0,0.297508]
[1736672647730,2.15664,3245.8,3245.1,0.8178]
[1736672648075,2.15664,3245.8,3245.1,0.84861255]
[1736672648670,0.7926,3245.9,3245.1,0.8178]
[1736672648878,2.94918,3245.9,3245.1,0.8178]
[1736672649024,0.7926,3245.9,3245.1,1.115301]
[1736672649224,0.7926,3245.9,3245.1,0.8178]
[1736672649420,2.15682,3245.6,3244.7,0.8178]
[1736672650066,2.15683,3245.5,3244.7,0.8178]
[1736672657687,2.94943,3245.5,3244.7,0.8178]
[1736672660281,8.25943,3245.5,3244.7,0.8178]
[1736672661455,8.25943,3245.5,3244.7,1.11840769]
[1736672663190,5.31,3245.5,3244.8,0.7711]
[1736672665639,5.31,3245.5,3244.9,0.7711]
[1736672666261,5.31,3245.6,3244.9,0.7711]
[1736672666456,5.31,3245.6,3245.0,0.03081588]
[1736672666660,5.31,3245.6,3245.2,2.15702]
[1736672666934,5.31,3245.6,3245.5,0.7711]
[1736672667807,5.31,3245.6,3245.5,2.92793]
[1736672669260,5.31,3246.7,3245.8,2.15662]
[1736672669439,7.46603,3246.7,3245.9,3.37489396]
[1736672669639,7.46603,3246.7,3245.9,0.7711]
[1736672672856,5.31,3246.7,3245.9,0.7711]
[1736672673059,2.76431,3246.6,3245.9,0.7711]
[1736672675177,2.15617,3246.5,3245.9,0.7711]
[1736672677935,0.55,3246.4,3244.8,5.37]
[1736672678166,0.7721,3245.9,3244.9,0.7711]
[1736672678368,2.15706,3245.2,3244.9,0.7711]
[1736672680785,2.1569,3245.4,3244.9,0.7711]
[1736672681136,2.15683,3245.5,3244.9,0.7711]
[1736672681682,2.15686,3245.5,3244.9,0.7711]
[1736672682895,3.0,3245.7,3244.9,0.7711]
[1736672683200,2.596591,3245.7,3244.9,0.7711]
[1736672683383,2.15677,3245.6,3244.9,0.7711]
[1736672684495,7.46677,3245.6,3244.9,0.7711]
[1736672684897,5.31,3245.6,3244.9,0.7711]
[1736672685199,2.15683,3245.5,3244.9,0.7711]
[1736672686272,5.31,3245.6,3244.9,0.7711]
[1736672687916,7.46677,3245.6,3244.9,0.7711]
[1736672693638,8.3169551,3245.6,3244.9,0.7711]
[1736672694130,2.15698,3245.3,3244.9,0.7711]
[1736672697288,6.1601851,3245.6,3244.9,0.7711]
[1736672697489,2.15684,3245.5,3244.9,0.7711]
[1736672698845,2.1569,3245.4,3244.9,0.7711]
[1736672699195,8.3169651,3245.6,3244.9,0.7711]
[1736672702238,8.3169651,3245.6,3245.0,0.7669]
[1736672702239,5.31,3245.6,3245.0,0.7669]
[1736672702613,0.55,3245.4,3244.3,0.7669]
[1736672702938,2.15734,3244.8,3244.3,0.7669]
[1736672708260,5.31,3244.9,3244.3,0.7669]
[1736672709234,7.46723,3244.9,3244.3,0.7669]
[1736672709862,7.46723,3244.9,3243.9,0.7669]
[1736672709863,6.137273,3244.9,3243.9,0.7669]
[1736672710177,2.15742,3244.7,3243.9,0.7669]
[1736672710480,6.137273,3244.9,3243.9,0.7669]
[1736672710481,2.15743,3244.6,3243.9,0.7669]
[1736672713267,2.15729,3244.8,3243.9,0.7669]
[1736672714159,5.31,3244.7,3243.9,0.7669]
[1736672714472,6.1394563,3244.7,3243.9,0.7669]
[1736672722073,6.1394563,3244.7,3244.0,0.8128]
[1736672723297,8.2968263,3244.7,3244.0,0.8128]
[1736672723492,2.15754,3244.5,3244.0,0.8128]
[1736672723629,0.295464,3244.4,3244.0,0.8128]
[1736672727104,2.453044,3244.4,3244.0,0.8128]
[1736672729180,7.763044,3244.4,3244.0,0.8128]
[1736672729752,5.605464,3244.4,3244.0,0.8128]
[1736672729954,2.15798,3243.8,3243.4,0.8291]
[1736672730482,2.15798,3243.8,3243.0,0.61596126]
[1736672730483,5.31,3243.6,3242.6,0.8291]
[1736672730870,2.15822,3243.4,3242.6,0.8291]
[1736672731081,2.95528,3243.5,3242.6,0.8291]
[1736672731238,2.15841,3243.2,3242.6,0.8291]
[1736672731442,2.1585,3243.0,3242.6,0.8291]
[1736672731843,2.374221,3243.2,3242.6,0.8291]
[1736672732440,2.15854,3243.0,3242.6,0.8291]
[1736672732865,0.07620903,3242.9,3242.6,0.8291]
[1736672733254,5.31,3243.1,3242.6,0.8291]
[1736672733473,0.07616168,3242.8,3242.6,0.8291]
[1736672733785,0.0761384,3242.7,3242.6,0.8291]
[1736672733980,5.31,3243.1,3242.6,0.8291]
[1736672734185,0.07620825,3243.0,3242.6,0.8291]
[1736672735368,3.01076218,3243.0,3242.6,0.8291]
[1736672735850,2.15857,3242.9,3242.6,0.8291]
[1736672736166,2.15857,3242.9,3242.0,0.7837]
[1736672736167,6.19294975,3242.8,3242.0,0.7837]
[1736672736352,2.15869,3242.7,3242.0,0.7837]
[1736672736554,0.91085606,3242.6,3242.0,0.7837]
[1736672736893,2.15888,3242.5,3242.0,0.7837]
[1736672737250,0.0756455,3242.4,3242.0,0.7837]
[1736672738160,2.15896,3242.3,3242.0,0.7837]
[1736672738379,0.29128746,3242.2,3242.0,0.7837]
[1736672738878,0.07539146,3242.2,3241.4,0.7837]
[1736672739078,0.07539146,3242.2,3241.6,0.61069409]
[1736672739281,0.07539146,3242.2,3241.7,0.7837]
[1736672739481,2.15891,3242.4,3241.7,0.7837]
[1736672739672,0.07513701,3242.1,3241.7,0.7837]
[1736672739998,0.07511372,3242.0,3241.7,0.7837]
[1736672740202,2.15891,3242.4,3241.7,0.7837]
[1736672740370,0.0751836,3242.3,3241.7,0.7837]
[1736672740552,2.2341436,3242.3,3241.7,0.7837]
[1736672740750,2.15903,3242.2,3241.7,0.7837]
[1736672740993,0.07481091,3242.1,3241.7,0.7837]
[1736672741369,2.15898,3242.3,3241.7,0.7837]
[1736672741574,0.07483421,3242.2,3241.7,0.7837]
[1736672745047,0.07479311,3242.1,3241.7,0.7837]
[1736672745444,7.46884,3242.5,3241.7,0.7837]
[1736672745736,0.07440813,3242.0,3241.7,0.7837]
[1736672745893,2.1589,3242.4,3241.7,0.7837]
[1736672746096,0.0743967,3241.9,3241.7,0.7837]
[1736672746308,2.15901,3242.3,3241.7,0.7837]
[1736672746496,0.0743734,3241.8,3241.7,0.7837]
[1736672746995,2.15901,3242.3,3241.7,0.7837]
[1736672747235,0.07444286,3242.2,3241.7,0.7837]
[1736672747623,2.15904,3242.2,3241.7,0.7837]
[1736672747942,0.07441957,3242.1,3241.7,0.7837]
[1736672748344,2.15917,3242.0,3241.7,0.7837]
[1736672748643,0.07434331,3241.9,3241.7,0.7837]
[1736672749142,2.23358331,3241.9,3241.7,0.7837]
[1736672749314,0.07434331,3241.9,3241.7,0.7837]
[1736672749701,2.15912,3242.1,3241.7,0.7837]
[1736672749898,0.07432001,3241.8,3241.7,0.7837]
[1736672750104,5.525912,3242.0,3241.7,0.7837]
[1736672750476,7.685082,3242.0,3241.7,0.7837]
[1736672750602,0.07434331,3241.9,3241.7,0.7837]
[1736672762025,0.7914,3241.8,3241.3,0.0092158]
[1736672762362,0.61757433,3241.7,3241.3,0.0092158]
[1736672762663,2.15949,3241.5,3241.3,0.0092158]
[1736672763003,5.38381852,3241.4,3241.3,0.0092158]
[1736672764566,5.38381852,3241.4,3241.3,0.7947158]
[1736672764859,5.38381852,3241.4,3241.3,2.9543358]
[1736672765070,5.38381852,3241.4,3241.3,3.24976938]
[1736672765213,5.31,3241.4,3241.3,3.24976938]
[1736672765413,5.38329063,3241.4,3241.3,3.24976938]
[1736672765812,0.07329063,3241.4,3241.3,6.29561891]
[1736672766037,2.81963496,3243.2,3241.9,2.15922]
[1736672766038,7.46862,3242.9,3241.9,2.15922]
[1736672766241,5.31,3242.9,3242.1,0.7855]
[1736672766407,0.06400863,3242.8,3242.2,0.7855]
[1736672766620,5.31,3243.1,3242.6,2.15875]
[1736672766822,2.37611,3243.6,3242.7,0.7855]
[1736672766823,0.06407302,3243.0,3242.7,0.7855]
[1736672767023,2.15829,3243.3,3242.7,0.7855]
[1736672767256,0.746829,3243.3,3242.7,0.7855]
[1736672767455,0.06491527,3243.2,3242.7,0.7855]
[1736672768008,0.06491527,3243.2,3242.9,2.15855]
[1736672768205,5.31,3243.5,3243.0,0.7855]
[1736672768477,0.06325703,3243.4,3243.0,0.7855]
[1736672768680,0.60058273,3243.4,3243.0,0.7855]
[1736672770033,0.06325703,3243.4,3243.0,0.7855]
[1736672770733,0.06325703,3243.4,3243.1,0.03083417]
[1736672770935,0.06325703,3243.4,3243.2,0.7855]
[1736672771149,0.06325703,3243.4,3243.3,0.7855]
[1736672771350,2.15775,3244.2,3243.3,0.7855]
[1736672771636,6.356775,3244.1,3243.3,0.7855]
[1736672771836,6.42049476,3244.1,3243.3,0.7855]
[1736672772754,8.57825476,3244.1,3243.3,0.7855]
[1736672772953,6.42049476,3244.1,3243.3,0.7855]
[1736672773281,2.15796,3243.8,3243.0,0.7855]
[1736672773587,0.215796,3243.7,3243.0,0.7855]
[1736672773740,0.27954742,3243.7,3243.0,0.7855]
[1736672774699,0.06375142,3243.7,3243.0,0.7855]
[1736672774849,3.19694,3244.0,3243.0,0.7855]
[1736672775187,0.06372815,3243.6,3243.0,0.7855]
[1736672775492,0.06370488,3243.5,3243.1,2.94392]
[1736672775786,0.218,3244.0,3243.1,2.94392]
[1736672775953,0.06368161,3243.4,3243.1,2.94392]
[1736672776139,5.31,3243.9,3243.1,2.94392]
[1736672776340,0.06365833,3243.3,3243.1,2.94392]
[1736672776580,5.31,3243.9,3243.1,2.94392]
[1736672776785,0.06363505,3243.2,3243.1,2.94392]
[1736672776990,5.31,3243.9,3243.1,2.94392]
[1736672777158,6.27057885,3243.9,3243.1,2.94392]
[1736672777481,0.06377469,3243.8,3243.1,0.7855]
[1736672780085,5.37377469,3243.8,3243.1,0.7855]
[1736672782543,5.37377469,3243.8,3243.1,2.94392]
[1736672783495,5.37377469,3243.8,3243.2,0.7513]
[1736672787052,5.37377469,3243.8,3243.2,2.90965]
[1736672787392,5.37377469,3243.8,3243.3,0.7513]
[1736672789198,5.37377469,3243.8,3243.3,2.90959]
[1736672790599,5.37377469,3243.8,3243.3,0.7513]
[1736672798089,8.96439004,3243.8,3243.3,0.7513]
[1736672798294,8.96439004,3243.8,3242.7,0.7513]
[1736672798295,5.31,3243.5,3242.7,0.7513]
[1736672798624,2.15863,3242.8,3242.4,0.7513]
[1736672798773,0.826783,3242.7,3242.4,0.7513]
[1736672798978,0.06400428,3242.7,3242.4,0.7513]
[1736672799382,2.15863,3242.8,3242.4,0.7513]
[1736672800005,0.06398052,3242.7,3242.4,0.7513]
[1736672800306,2.15863,3242.8,3242.4,0.7513]
[1736672800522,0.06395723,3242.6,3242.4,0.7513]
[1736672800808,6.1092,3242.9,3242.4,0.7513]
[1736672801110,6.935971,3242.9,3242.4,0.7513]
[1736672801308,0.0640038,3242.8,3242.4,0.7513]
[1736672804205,5.3740038,3242.8,3242.4,0.7513]
[1736672808824,5.3740038,3242.8,3242.4,1.36163095]
[1736672809231,5.3740038,3242.8,3242.5,0.769]
[1736672809401,5.3740038,3242.8,3242.5,2.92781]
[1736672809603,5.3740038,3242.8,3242.7,0.769]
[1736672809988,0.0640038,3242.8,3242.7,0.769]
[1736672810419,5.31,3243.4,3242.7,0.769]
[1736672810729,0.06289396,3242.8,3242.7,2.92769]
[1736672811027,5.31,3243.4,3242.8,0.769]
[1736672813433,8.215051,3243.4,3242.8,0.769]
[1736672814390,6.056811,3243.4,3242.8,0.769]
[1736672814719,0.06309355,3243.3,3242.8,0.769]
[1736672819600,0.06309355,3243.3,3242.8,2.92762]
[1736672819803,0.06309355,3243.3,3242.8,2.15862]
[1736672819997,0.06309355,3243.3,3242.9,0.8209]
[1736672820197,0.06309355,3243.3,3243.1,0.61553854]
[1736672820711,0.06309355,3243.3,3242.9,0.8209]
[1736672824267,0.06309355,3243.3,3243.0,0.7691]
[1736672824621,5.31,3243.4,3243.0,0.7691]
[1736672825173,0.06330715,3243.3,3243.0,0.7691]
[1736672825462,5.31,3243.4,3243.0,0.7691]
[1736672825838,0.06331536,3243.3,3243.0,0.7691]
[1736672827316,0.06331536,3243.3,3243.0,1.42123014]
[1736672828527,0.06331536,3243.3,3243.0,0.7691]
[1736672839141,5.31,3243.7,3243.2,2.15836]
[1736672839348,0.06187312,3243.6,3243.3,2.95349]
[1736672839601,6.1071,3244.2,3243.3,2.95349]
[1736672839897,0.06185787,3243.5,3243.3,2.95349]
[1736672840076,6.1071,3244.2,3243.4,0.295349]
[1736672840250,6.1071,3244.2,3243.3,2.95349]
[1736672843252,6.1071,3244.2,3243.4,0.62362961]
[1736672844596,0.06217509,3244.1,3243.4,0.62362961]
[1736672845801,0.06217509,3244.1,3243.3,2.95349]
[1736672847268,0.06217509,3244.1,3243.3,3.5659485]
[1736672847581,0.06217509,3244.1,3243.5,2.15811]
[1736672850591,0.06217509,3244.1,3243.6,0.7514]
[1736672850888,0.06217509,3244.1,3243.6,2.90947]
[1736672852450,0.7537,3244.4,3243.6,2.90947]
[1736672852651,0.06254984,3244.0,3243.6,2.90947]
[1736672852952,0.0626394,3243.9,3243.7,0.290947]
[1736672853153,0.7537,3244.4,3243.7,0.290947]
[1736672853396,0.06273244,3244.3,3243.8,1.2333233]
[1736672855196,0.06273244,3244.3,3243.8,1.86128548]
[1736672858555,0.06150405,3244.2,3243.8,1.86128548]
[1736672858757,5.31,3244.5,3243.9,0.43102225]
[1736672858955,0.06155057,3244.4,3243.9,0.43102225]
[1736672860966,0.06155057,3244.4,3243.8,1.86128548]
[1736672869609,0.06155057,3244.4,3243.8,1.89210989]
[1736672872271,0.06155057,3244.4,3244.0,1.2333233]
[1736672875672,0.06155057,3244.4,3244.2,1.2333233]
[1736672876230,2.95036,3244.9,3244.3,0.8039]
[1736672876525,0.05942824,3244.8,3244.4,1.2333233]
[1736672876731,0.05942824,3244.8,3244.3,0.8039]
[1736672881391,0.05942824,3244.8,3244.3,1.00762233]
[1736672882497,0.05942824,3244.8,3244.3,3.16522233]
[1736672882709,6.1031,3245.2,3244.3,3.16522233]
[1736672882899,0.05950198,3244.7,3244.3,3.16522233]
[1736672883112,6.1031,3245.2,3244.4,0.0308189]
[1736672883318,0.05947873,3244.6,3244.5,0.31960412]
[1736672883814,6.1031,3245.2,3244.5,0.31960412]
[1736672884021,0.05959498,3245.1,3244.5,0.60737781]
[1736672884329,0.05959498,3245.1,3244.4,3.3908533]
[1736672885636,0.05959498,3245.1,3244.4,3.99681099]
[1736672887003,0.05959498,3245.1,3244.7,0.7801]
[1736672887203,0.05959498,3245.1,3244.8,0.20134233]
[1736672889945,0.05959498,3245.1,3244.8,1.43466563]
[1736672891151,0.802,3245.4,3244.8,1.43466563]
[1736672891648,0.05883881,3245.3,3244.8,1.43466563]
[1736672893870,0.05883881,3245.3,3244.9,0.7801]
[1736672894091,0.86083881,3245.3,3245.0,0.22147656]
[1736672894229,0.802,3245.3,3245.0,0.22147656]